fUST/lending_fUST_20240618
["ID","MTS","AMOUNT","RATE_DAILY","PERIOD"]
[329778849,1718668033339,-500.0,0.00016438,2]
[329778850,1718668033366,-500.0,0.00016438,2]
[329778851,1718668033389,-500.0,0.00016438,2]
[329778852,1718668033412,-500.0,0.00016438,2]
[329778853,1718668033434,-997.68,0.00016438,2]
[329778854,1718668033456,-270.37422329,0.00016438,2]
[329778855,1718668033479,-500.0,0.00016438,2]
[329778856,1718668033500,-163.93138658,0.00016438,2]
[329778857,1718668033521,-500.0,0.00016438,2]
[329778858,1718668033542,-500.0,0.00016438,2]
[329778859,1718668033563,-500.0,0.00016438,2]
[329778860,1718668033585,-963.68,0.00016438,2]
[329778861,1718668033605,-500.0,0.00016438,2]
[329778862,1718668033626,-1174.16,0.00016438,2]
[329778863,1718668033647,-500.0,0.00016438,2]
[329778864,1718668033666,-500.0,0.00016711,2]
[329778865,1718668033815,-500.0,0.00016711,2]
[329778866,1718668033840,-500.0,0.00016712,2]
[329778867,1718668033862,-503.87,0.00016712,2]
[329778868,1718668033884,-706.96,0.00016712,2]
[329778869,1718668033906,-500.0,0.00016712,2]
[329778870,1718668033928,-1545.59,0.00016712,2]
[329778871,1718668033947,-997.68,0.00016712,2]
[329778872,1718668033969,-963.68,0.00016712,2]
[329778873,1718668033989,-500.0,0.00016712,2]
[329778874,1718668034012,-1174.16,0.00016712,2]
[329778875,1718668034033,-522.1,0.00016961,2]
[329778876,1718668034054,-706.96,0.00016986,2]
[329778877,1718668034075,-500.0,0.00016986,2]
[329778878,1718668034097,-1545.59,0.00016986,2]
[329778879,1718668034122,-997.68,0.00016986,2]
[329778880,1718668034144,-963.68,0.00016986,2]
[329778881,1718668034163,-500.0,0.00016986,2]
[329778882,1718668034186,-1174.16,0.00016986,2]
[329778883,1718668034207,-2000.0,0.00017,2]
[329778884,1718668034227,-160.92576783,0.0001711,2]
[329778885,1718668034249,-820.1,0.00017259,2]
[329778886,1718668034274,-500.0,0.00017259,2]
[329778887,1718668034296,-723.76,0.00017259,2]
[329778888,1718668034318,-697.38,0.00017259,2]
[329778889,1718668034341,-500.0,0.00017259,2]
[329778890,1718668034362,-500.0,0.00017259,2]
[329778891,1718668034382,-500.0,0.00017259,2]
[329778892,1718668034404,-500.0,0.00017259,2]
[329778893,1718668034425,-539.16,0.00017259,2]
[329778894,1718668034445,-500.0,0.00017259,2]
[329778895,1718668034467,-298.58336678,0.0001726,2]
[329778896,1718668034488,-706.96,0.0001726,2]
[329778897,1718668034510,-1545.59,0.0001726,2]
[329778898,1718668034530,-500.0,0.0001726,2]
[329778899,1718668034550,-997.68,0.0001726,2]
[329778900,1718668034570,-963.68,0.0001726,2]
[329778901,1718668034589,-500.0,0.0001726,2]
[329778902,1718668034610,-1174.16,0.0001726,2]
[329778903,1718668034631,-522.1,0.00017455,2]
[329778904,1718668034650,-153.0,0.00017507,2]
[329778905,1718668034669,-153.0,0.00017507,2]
[329778906,1718668034689,-153.0,0.00017507,2]
[329778907,1718668034709,-153.0,0.00017507,2]
[329778908,1718668034729,-500.0,0.00017533,2]
[329778909,1718668034751,-500.0,0.00017533,2]
[329778910,1718668034770,-500.0,0.00017533,2]
[329778911,1718668034790,-500.0,0.00017533,2]
[329778912,1718668034811,-820.1,0.00017533,2]
[329778913,1718668034832,-500.0,0.00017533,2]
[329778914,1718668034852,-723.76,0.00017533,2]
[329778915,1718668034873,-697.38,0.00017533,2]
[329778916,1718668034896,-500.0,0.00017533,2]
[329778917,1718668034916,-539.16,0.00017533,2]
[329778918,1718668034936,-500.0,0.00017533,2]
[329778919,1718668034959,-706.96,0.00017534,2]
[329778920,1718668034981,-1545.59,0.00017534,2]
[329778921,1718668035002,-500.0,0.00017534,2]
[329778922,1718668035024,-997.68,0.00017534,2]
[329778923,1718668035045,-963.68,0.00017534,2]
[329778924,1718668035064,-500.0,0.00017534,2]
[329778925,1718668035086,-1174.16,0.00017534,2]
[329778926,1718668035105,-952.8272795,0.00017611,2]
[329778927,1718668035124,-288.54033765,0.00017779,2]
[329778928,1718668035143,-170.34792105,0.00017779,2]
[329778929,1718668035163,-155.0,0.000178,2]
[329778930,1718668035183,-820.1,0.00017807,2]
[329778931,1718668035203,-500.0,0.00017807,2]
[329778932,1718668035225,-723.76,0.00017807,2]
[329778933,1718668035245,-530.64369425,0.00017807,2]
[329778934,1718668035268,-697.38,0.00017807,2]
[329778935,1718668035290,-500.0,0.00017807,2]
[329778936,1718668035312,-539.16,0.00017807,2]
[329778937,1718668035332,-500.0,0.00017807,2]
[329778938,1718668035355,-706.96,0.00017808,2]
[329778939,1718668035376,-1545.59,0.00017808,2]
[329778940,1718668035398,-500.0,0.00017808,2]
[329778941,1718668035418,-997.68,0.00017808,2]
[329778942,1718668035438,-963.68,0.00017808,2]
[329778943,1718668035458,-500.0,0.00017808,2]
[329778944,1718668035480,-1174.16,0.00017808,2]
[329778945,1718668035499,-158.23409006,0.0001782,3]
[329778946,1718668035518,-456.91543891,0.00017875,2]
[329778947,1718668035538,-12462.4771587,0.00017876,2]
[329778948,1718668038098,-16087.57460494,0.00017876,2]
[329778949,1718668038118,-151.0,0.00017876,2]
[329778950,1718668038138,-151.0,0.00017876,2]
[329778951,1718668038160,-160.92576783,0.00017881,2]
[329778952,1718668038182,-5117.90005715,0.000179,15]
[329778953,1718668043687,-334.86501481,0.000179,15]
[329778954,1718668043707,-2124.07161198,0.000179,13]
[329778955,1718668043730,-44322.75962173,0.000179,2]
[329778956,1718668045146,-11155.24021,0.000179,2]
[329779001,1718668233835,-717.59,0.00016438,2]
[329779003,1718668233846,-500.0,0.00016438,2]
[329779005,1718668233855,-633.29,0.00016438,2]
[329779007,1718668233864,-20.97293915,0.00016438,2]
[329779010,1718668233891,-479.02706085,0.00016438,2]
[329779012,1718668233900,-610.21,0.00016438,2]
[329779015,1718668233910,-500.0,0.00016438,2]
[329779017,1718668233920,-500.0,0.00016438,2]
[329779018,1718668233929,-717.59,0.00016712,2]
[329779020,1718668233940,-500.0,0.00016712,2]
[329779022,1718668233949,-633.29,0.00016712,2]
[329779024,1718668233958,-610.21,0.00016712,2]
[329779025,1718668233968,-500.0,0.00016712,2]
[329779027,1718668233977,-500.0,0.00016712,2]
[329779029,1718668233987,-435.1,0.00016969,2]
[329779031,1718668233996,-717.59,0.00016986,2]
[329779033,1718668234005,-500.0,0.00016986,2]
[329779035,1718668234014,-633.29,0.00016986,2]
[329779037,1718668234023,-610.21,0.00016986,2]
[329779039,1718668234032,-500.0,0.00016986,2]
[329779040,1718668234041,-500.0,0.00016986,2]
[329779042,1718668234051,-530.22,0.00017259,2]
[329779043,1718668234062,-717.59,0.0001726,2]
[329779044,1718668234072,-500.0,0.0001726,2]
[329779046,1718668234083,-633.29,0.0001726,2]
[329779047,1718668234093,-610.21,0.0001726,2]
[329779049,1718668234102,-500.0,0.0001726,2]
[329779051,1718668234112,-500.0,0.0001726,2]
[329779053,1718668234121,-435.1,0.00017462,2]
[329779055,1718668234130,-530.22,0.00017533,2]
[329779057,1718668234140,-717.59,0.00017534,2]
[329779058,1718668234149,-500.0,0.00017534,2]
[329779060,1718668234158,-633.29,0.00017534,2]
[329779062,1718668234168,-610.21,0.00017534,2]
[329779064,1718668234177,-500.0,0.00017534,2]
[329779066,1718668234186,-626.05,0.00017534,2]
[329779068,1718668234197,-153.0,0.000176,2]
[329779070,1718668234207,-530.22,0.00017807,2]
[329779072,1718668234216,-880.62,0.00017807,2]
[329779074,1718668234226,-717.59,0.00017808,2]
[329779076,1718668234235,-500.0,0.00017808,2]
[329779078,1718668234244,-633.29,0.00017808,2]
[329779080,1718668234254,-610.21,0.00017808,2]
[329779082,1718668234263,-500.0,0.00017808,2]
[329779084,1718668234273,-1408.72997741,0.00017896,2]
[329779086,1718668234282,-7940.4882407,0.00017899,2]
[329779088,1718668234291,-377.88691481,0.000179,2]
[329779090,1718668234301,-435.1,0.00017956,2]
[329779092,1718668234310,-151.0,0.00017981,2]
[329779094,1718668234320,-28704.84039407,0.00017996,2]
[329779195,1718668239782,-9218.55354048,0.00017996,2]
[329779196,1718668239796,-29000.01642683,0.00017996,2]
[329779197,1718668239824,-305.02817413,0.00017996,2]
[329779198,1718668239836,-7744.67834109,0.00017996,2]
[329779199,1718668239846,-151.0,0.00017996,2]
[329779200,1718668239856,-2726.38253598,0.00018,15]
[329779201,1718668239867,-140803.10144271,0.00018,2]
[329779202,1718668239877,-500.00000001,0.00018,2]
[329779203,1718668239887,-156.416343,0.00018,2]
[329779204,1718668239897,-1750.0,0.0001807,2]
[329779205,1718668239907,-774.40299484,0.0001808,2]
[329779206,1718668239917,-1299.03373062,0.0001808,2]
[329779207,1718668239927,-20000.0,0.00018081,2]
[329779208,1718668239938,-539.16,0.00018081,2]
[329779209,1718668239953,-500.0,0.00018081,2]
[329779210,1718668239962,-530.22,0.00018081,2]
[329779211,1718668239972,-880.62,0.00018081,2]
[329779212,1718668239983,-997.68,0.00018082,2]
[329779213,1718668239994,-963.68,0.00018082,2]
[329779214,1718668240005,-500.0,0.00018082,2]
[329779215,1718668240015,-717.59,0.00018082,2]
[329779216,1718668240025,-500.0,0.00018082,2]
[329779217,1718668240036,-633.29,0.00018082,2]
[329779218,1718668240046,-610.21,0.00018082,2]
[329779220,1718668240057,-500.0,0.00018082,2]
[329779222,1718668240066,-153.0,0.00018082,2]
[329779224,1718668240077,-153.0,0.00018082,2]
[329779225,1718668240087,-153.0,0.00018082,2]
[329779226,1718668240099,-153.0,0.00018082,2]
[329779227,1718668240109,-539.16,0.00018355,2]
[329779229,1718668240119,-500.0,0.00018355,2]
[329779231,1718668240128,-530.22,0.00018355,2]
[329779233,1718668240138,-880.62,0.00018355,2]
[329779235,1718668240148,-997.68,0.00018356,2]
[329779237,1718668240158,-963.68,0.00018356,2]
[329779239,1718668240169,-500.0,0.00018356,2]
[329779241,1718668240179,-717.59,0.00018356,2]
[329779244,1718668240191,-500.0,0.00018356,2]
[329779246,1718668240202,-633.29,0.00018356,2]
[329779248,1718668240211,-610.21,0.00018356,2]
[329779250,1718668240222,-500.0,0.00018356,2]
[329779252,1718668240232,-435.1,0.00018449,2]
[329779254,1718668240242,-539.16,0.00018629,2]
[329779256,1718668240252,-500.0,0.00018629,2]
[329779258,1718668240263,-530.22,0.00018629,2]
[329779260,1718668240273,-880.62,0.00018629,2]
[329779262,1718668240284,-997.68,0.0001863,2]
[329779264,1718668240294,-963.68,0.0001863,2]
[329779266,1718668240305,-500.0,0.0001863,2]
[329779268,1718668240316,-717.59,0.0001863,2]
[329779270,1718668240327,-500.0,0.0001863,2]
[329779272,1718668240337,-633.29,0.0001863,2]
[329779274,1718668240352,-610.21,0.0001863,2]
[329779277,1718668240362,-500.0,0.0001863,2]
[329779279,1718668240372,-250.0,0.0001863,2]
[329779281,1718668240383,-2000.0,0.00018804,2]
[329779283,1718668240393,-1777.23923175,0.000189,2]
[329779327,1718668241962,-500.0,0.00016438,2]
[329779329,1718668241973,-500.0,0.00016712,2]
[329779331,1718668241984,-1221.63928048,0.000189,2]
[329779333,1718668241996,-4558.57208159,0.000189,2]
[329779335,1718668242008,-29992.87900763,0.000189,2]
[329779482,1718668243282,-2538.6220395,0.000189,2]
[329779603,1718668243807,-500.0,0.00016986,2]
[329779606,1718668243817,-205.58448431,0.0001726,2]
[329779925,1718668246768,-294.41551569,0.0001726,2]
[329779927,1718668246777,-153.0,0.00017507,2]
[329779929,1718668246786,-500.0,0.00017534,2]
[329779931,1718668246795,-500.0,0.00017808,2]
[329779933,1718668246805,-500.0,0.00018082,2]
[329779935,1718668246814,-500.0,0.00018356,2]
[329779937,1718668246824,-500.0,0.0001863,2]
[329779939,1718668246833,-31809.0175034,0.000189,2]
[329779947,1718668246901,-742.73274109,0.000189,2]
[329780703,1718668290933,242.62254666,9.999e-05,2]
[329780704,1718668300498,1559.30290216,9.999e-05,2]
[329780705,1718668300521,168.08187762,9.999e-05,2]
[329780706,1718668300544,368.89660812,9.999e-05,2]
[329780707,1718668312754,1550.59647363,9.999e-05,2]
[329780708,1718668312781,7883.7628135,9.999e-05,2]
[329780709,1718668596542,265.1,0.00010959,2]
[329780711,1718668833806,200.0,0.00022898,120]
[329780712,1718669072645,200.0,0.00022913,120]
[329780713,1718669118911,7077.54,0.000225,30]
[329780715,1718669241182,-24900.0,0.00015521,2]
[329780716,1718669241203,-483.12173838,0.000156,2]
[329780717,1718669241223,-255.5245173,0.00015786,2]
[329780718,1718669241244,-1232.63873026,0.00016338,2]
[329780719,1718669241264,-168.08187762,0.00016438,2]
[329780720,1718669241284,-500.0,0.00016438,2]
[329780721,1718669241304,-500.0,0.00016438,2]
[329780722,1718669241324,-500.0,0.00016438,2]
[329780723,1718669241344,-500.0,0.00016438,2]
[329780724,1718669241364,-500.0,0.00016438,2]
[329780725,1718669241384,-500.0,0.00016438,2]
[329780726,1718669241410,-500.0,0.00016438,2]
[329780727,1718669241429,-511.68499252,0.00016438,2]
[329780728,1718669241450,-340.0,0.00016438,2]
[329780729,1718669241470,-500.0,0.00016438,2]
[329780730,1718669241489,-505.95545993,0.00016438,2]
[329780731,1718669241510,-367.91350064,0.00016438,2]
[329780732,1718669241529,-500.0,0.00016438,2]
[329780733,1718669241551,-500.0,0.00016438,2]
[329780734,1718669241570,-566.45521637,0.00016438,2]
[329780735,1718669241589,-500.0,0.00016438,2]
[329780736,1718669241609,-500.0,0.00016438,2]
[329780737,1718669241630,-500.0,0.00016438,2]
[329780738,1718669241652,-484.40192052,0.00016438,2]
[329780739,1718669241671,-500.0,0.00016438,2]
[329780740,1718669241691,-500.0,0.00016438,2]
[329780741,1718669241713,-500.0,0.00016438,2]
[329780742,1718669241732,-500.0,0.00016438,2]
[329780743,1718669241753,-500.0,0.00016438,2]
[329780744,1718669241775,-916.16,0.00016438,2]
[329780745,1718669241796,-500.0,0.00016438,2]
[329780746,1718669241816,-506.51533363,0.00016438,2]
[329780747,1718669241836,-500.0,0.00016438,2]
[329780748,1718669241856,-566.40968636,0.00016438,2]
[329780749,1718669241876,-500.0,0.00016438,2]
[329780750,1718669241900,-500.0,0.00016438,2]
[329780751,1718669241920,-500.0,0.00016438,2]
[329780752,1718669241941,-602.3,0.00016438,2]
[329780753,1718669241960,-500.0,0.00016711,2]
[329780754,1718669241981,-500.0,0.00016711,2]
[329780755,1718669242001,-500.0,0.00016711,2]
[329780756,1718669242021,-500.0,0.00016711,2]
[329780757,1718669242042,-503.76418704,0.00016711,2]
[329780758,1718669242062,-500.0,0.00016711,2]
[329780759,1718669242083,-500.0,0.00016711,2]
[329780760,1718669242104,-500.0,0.00016711,2]
[329780761,1718669242125,-500.0,0.00016711,2]
[329780762,1718669242150,-500.0,0.00016711,2]
[329780763,1718669242171,-500.0,0.00016712,2]
[329780764,1718669242191,-500.0,0.00016712,2]
[329780765,1718669243621,-543.27632955,0.00016712,2]
[329780766,1718669243644,-500.0,0.00016712,2]
[329780767,1718669243668,-500.0,0.00016712,2]
[329780768,1718669243691,-916.16,0.00016712,2]
[329780769,1718669243715,-500.0,0.00016712,2]
[329780770,1718669243735,-500.0,0.00016712,2]
[329780771,1718669243755,-602.3,0.00016712,2]
[329780772,1718669243781,-172.56821074,0.00016886,2]
[329780773,1718669243802,-500.0,0.00016985,2]
[329780774,1718669243822,-500.0,0.00016985,2]
[329780775,1718669243844,-500.0,0.00016985,2]
[329780776,1718669243863,-500.0,0.00016986,2]
[329780777,1718669243884,-916.16,0.00016986,2]
[329780778,1718669243907,-384.38858474,0.00016986,2]
[329780779,1718669243928,-500.0,0.00016986,2]
[329780780,1718669243949,-602.3,0.00016986,2]
[329780781,1718669243969,-378.1,0.00017028,2]
[329780782,1718669243988,-500.0,0.00017259,2]
[329780783,1718669244008,-500.0,0.00017259,2]
[329780784,1718669244030,-500.0,0.00017259,2]
[329780785,1718669244050,-500.0,0.0001726,2]
[329780786,1718669244071,-916.16,0.0001726,2]
[329780787,1718669244092,-500.0,0.0001726,2]
[329780788,1718669244116,-602.3,0.0001726,2]
[329780789,1718669244137,-378.1,0.00017516,2]
[329780790,1718669244161,-500.0,0.00017533,2]
[329780791,1718669244182,-500.0,0.00017533,2]
[329780792,1718669244203,-500.0,0.00017533,2]
[329780793,1718669244225,-500.0,0.00017534,2]
[329780794,1718669244247,-916.16,0.00017534,2]
[329780795,1718669244268,-500.0,0.00017534,2]
[329780796,1718669244290,-602.3,0.00017534,2]
[329780797,1718669244312,-500.0,0.00017807,2]
[329780798,1718669244333,-500.0,0.00017807,2]
[329780799,1718669244354,-500.0,0.00017808,2]
[329780800,1718669244377,-916.16,0.00017808,2]
[329780801,1718669244397,-602.3,0.00017808,2]
[329780802,1718669244421,-172.56821074,0.00017891,2]
[329780803,1718669244442,-500.0,0.00017899,2]
[329780804,1718669244462,-500.0,0.00017899,2]
[329780805,1718669244483,-500.0,0.00017899,2]
[329780806,1718669244503,-500.0,0.00017899,2]
[329780807,1718669244639,-500.0,0.00017899,2]
[329780808,1718669244663,-500.0,0.00017899,2]
[329780809,1718669244688,-500.0,0.00017899,2]
[329780810,1718669244711,-500.0,0.00017899,2]
[329780811,1718669244736,-500.0,0.00017899,2]
[329780812,1718669244756,-623.55,0.00017899,2]
[329780813,1718669244780,-500.0,0.00017899,2]
[329780814,1718669244800,-500.0,0.00017899,2]
[329780815,1718669244820,-500.0,0.00017899,2]
[329780816,1718669244840,-456.50360875,0.00017899,2]
[329780817,1718669244860,-500.0,0.00017899,2]
[329780818,1718669244882,-500.0,0.00017899,2]
[329780819,1718669244903,-500.0,0.00017899,2]
[329780820,1718669244923,-500.0,0.00017995,2]
[329780821,1718669244945,-500.0,0.00017995,2]
[329780822,1718669244968,-673.5,0.00017995,2]
[329780823,1718669244990,-563.89349169,0.00017995,2]
[329780824,1718669245012,-378.1,0.00018004,2]
[329780825,1718669245037,-820.71,0.0001808,2]
[329780826,1718669245058,-500.0,0.0001808,2]
[329780827,1718669245080,-698.17,0.0001808,2]
[329780828,1718669245101,-589.39,0.0001808,2]
[329780829,1718669245123,-500.0,0.0001808,2]
[329780830,1718669245145,-500.0,0.0001808,2]
[329780831,1718669245168,-517.25,0.0001808,2]
[329780832,1718669245190,-500.0,0.0001808,2]
[329780833,1718669245211,-20000.0,0.00018081,2]
[329780834,1718669245232,-500.0,0.00018081,2]
[329780835,1718669245253,-500.0,0.00018082,2]
[329780836,1718669245276,-916.16,0.00018082,2]
[329780837,1718669245299,-602.3,0.00018082,2]
[329780838,1718669245319,-1750.0,0.0001817,2]
[329780839,1718669245341,-500.0,0.00018173,2]
[329780840,1718669245362,-500.0,0.00018173,2]
[329780841,1718669245383,-500.0,0.00018173,2]
[329780842,1718669245408,-500.0,0.00018173,2]
[329780843,1718669245430,-500.0,0.00018173,2]
[329780844,1718669245451,-623.55,0.00018173,2]
[329780845,1718669245471,-500.0,0.00018173,2]
[329780846,1718669245492,-500.0,0.00018173,2]
[329780847,1718669245513,-500.0,0.00018173,2]
[329780848,1718669245536,-500.0,0.00018269,2]
[329780849,1718669245557,-500.0,0.00018269,2]
[329780850,1718669245581,-673.5,0.00018269,2]
[329780851,1718669245604,-820.71,0.00018354,2]
[329780852,1718669245626,-500.0,0.00018354,2]
[329780853,1718669245649,-698.17,0.00018354,2]
[329780854,1718669245678,-589.39,0.00018354,2]
[329780855,1718669245706,-500.0,0.00018354,2]
[329780856,1718669245730,-500.0,0.00018354,2]
[329780857,1718669245752,-517.25,0.00018354,2]
[329780858,1718669245777,-500.0,0.00018355,2]
[329780859,1718669245797,-500.0,0.00018356,2]
[329780860,1718669245821,-916.16,0.00018356,2]
[329780861,1718669245843,-602.3,0.00018356,2]
[329780862,1718669245866,-500.0,0.00018447,2]
[329780863,1718669245887,-500.0,0.00018447,2]
[329780864,1718669245911,-500.0,0.00018447,2]
[329780865,1718669245933,-500.0,0.00018447,2]
[329780866,1718669245953,-500.0,0.00018447,2]
[329780867,1718669245973,-623.55,0.00018447,2]
[329780868,1718669245993,-500.0,0.00018447,2]
[329780869,1718669246013,-345.88302052,0.00018447,2]
[329780870,1718669246033,-378.1,0.00018492,2]
[329780871,1718669246054,-500.0,0.00018543,2]
[329780872,1718669246073,-500.0,0.00018543,2]
[329780873,1718669246095,-673.5,0.00018543,2]
[329780874,1718669246115,-306.0,0.00018603,2]
[329780875,1718669246134,-153.0,0.00018603,2]
[329780876,1718669246157,-153.0,0.00018603,2]
[329780877,1718669246177,-820.71,0.00018628,2]
[329780878,1718669246198,-500.0,0.00018628,2]
[329780879,1718669246218,-698.17,0.00018628,2]
[329780880,1718669246237,-589.39,0.00018628,2]
[329780881,1718669246258,-500.0,0.00018628,2]
[329780882,1718669246278,-500.0,0.00018628,2]
[329780883,1718669246299,-517.25,0.00018628,2]
[329780884,1718669246320,-500.0,0.00018629,2]
[329780885,1718669246339,-500.0,0.0001863,2]
[329780886,1718669246360,-916.16,0.0001863,2]
[329780887,1718669246380,-602.3,0.0001863,2]
[329780888,1718669246400,-158.23409006,0.0001871,3]
[329780889,1718669246428,-500.0,0.00018721,2]
[329780890,1718669246455,-500.0,0.00018721,2]
[329780891,1718669246478,-500.0,0.00018721,2]
[329780892,1718669246499,-483.11,0.00018721,2]
[329780893,1718669246520,-500.0,0.00018721,2]
[329780894,1718669246545,-623.55,0.00018721,2]
[329780895,1718669246566,-500.0,0.00018817,2]
[329780896,1718669246588,-500.0,0.00018817,2]
[329780897,1718669246610,-673.5,0.00018817,2]
[329780898,1718669246630,-172.56821074,0.00018895,2]
[329780899,1718669246650,-383.29211015,0.00018896,2]
[329780900,1718669246678,-1404.04748655,0.00018896,2]
[329780901,1718669246704,-166.51601448,0.00018897,2]
[329780902,1718669246724,-945.74878612,0.00018897,2]
[329780903,1718669246745,-695.47179616,0.00018897,2]
[329780904,1718669246766,-8847.50782748,0.00018897,2]
[329780905,1718669246789,-309.79014398,0.00018897,2]
[329780906,1718669246809,-217.18829622,0.00018897,2]
[329780907,1718669246831,-1342.97936406,0.00018897,2]
[329780908,1718669246855,-215.45514594,0.00018898,2]
[329780909,1718669246875,-1581.95570728,0.00018898,2]
[329780910,1718669246895,-33261.0297478,0.00018898,2]
[329780911,1718669246922,-1363.19126799,0.00018899,15]
[329780912,1718669246941,-374.32964814,0.00018899,2]
[329780913,1718669246961,-50905.24876539,0.00018899,2]
[329780914,1718669246980,-13013.18222727,0.000189,2]
[329780915,1718669247003,-820.71,0.00018902,2]
[329780916,1718669247023,-500.0,0.00018902,2]
[329780917,1718669247044,-698.17,0.00018902,2]
[329780918,1718669247065,-589.39,0.00018902,2]
[329780919,1718669247087,-500.0,0.00018902,2]
[329780920,1718669247108,-500.0,0.00018902,2]
[329780921,1718669247129,-517.25,0.00018902,2]
[329780922,1718669247150,-617.39838461,0.00018903,2]
[329780923,1718669247175,-500.0,0.00018904,2]
[329780924,1718669247199,-916.16,0.00018904,2]
[329780925,1718669247220,-602.3,0.00018904,2]
[329780926,1718669247239,-378.1,0.0001898,2]
[329780927,1718669247258,-151.0,0.0001898,2]
[329780928,1718669247278,-330.255792,0.00018986,2]
[329780929,1718669247300,-500.0,0.00018995,2]
[329780930,1718669247321,-500.0,0.00018995,2]
[329780931,1718669247343,-623.93,0.00018995,2]
[329780932,1718669247362,-623.55,0.00018995,2]
[329780933,1718669247382,-12741.78524846,0.00019,2]
[329780934,1718669247456,-46636.69660074,0.00019,2]
[329780935,1718669247475,-14811.63047331,0.00019,2]
[329780936,1718669247494,-151.0,0.00019,2]
[329780937,1718669247513,-151.0,0.00019,2]
[329780938,1718669247532,-151.0,0.00019,2]
[329780939,1718669247551,-151.0,0.00019,2]
[329780940,1718669247570,-151.0,0.00019,2]
[329780941,1718669247588,-300.25983,0.00019,2]
[329780942,1718669247608,-1000.0,0.00019,2]
[329780943,1718669247627,-1000.0,0.00019,2]
[329780944,1718669247647,-1000.0,0.00019,2]
[329780945,1718669247673,-1000.0,0.00019,2]
[329780946,1718669247696,-1000.0,0.00019,2]
[329780947,1718669247716,-1000.0,0.00019,2]
[329780948,1718669247737,-1000.0,0.00019,2]
[329780949,1718669247757,-1000.0,0.00019,2]
[329780950,1718669247779,-1000.0,0.00019,2]
[329780951,1718669247902,-1000.0,0.00019,2]
[329780952,1718669247927,-1000.0,0.00019,2]
[329780953,1718669247946,-1000.0,0.00019,2]
[329780954,1718669247964,-1000.0,0.00019,2]
[329780955,1718669247983,-1000.0,0.00019,2]
[329780956,1718669248003,-1000.0,0.00019,2]
[329780957,1718669248022,-1000.0,0.00019,2]
[329780958,1718669248041,-1000.0,0.00019,2]
[329780959,1718669248062,-1000.0,0.00019,2]
[329780960,1718669248081,-1000.0,0.00019,2]
[329780961,1718669248101,-1000.0,0.00019,2]
[329780962,1718669248121,-1000.0,0.00019,2]
[329780963,1718669248140,-1000.0,0.00019,2]
[329780964,1718669248164,-1000.0,0.00019,2]
[329780965,1718669248183,-1000.0,0.00019,2]
[329780966,1718669248202,-1000.0,0.00019,2]
[329780967,1718669248221,-1000.0,0.00019,2]
[329780968,1718669248240,-1000.0,0.00019,2]
[329780969,1718669248260,-1000.0,0.00019,2]
[329780970,1718669248280,-1000.0,0.00019,2]
[329780971,1718669248300,-1000.0,0.00019,2]
[329780972,1718669248320,-1000.0,0.00019,2]